[Event "2nd Tal Memorial IM 2019"]
[Site "Anogia"]
[Date "2019.09.13"]
[Round "3.3"]
[White "Bogdanov, Egor"]
[Black "Peng, Li Min"]
[Result "0-1"]
[ECO "B03"]
[WhiteElo "2422"]
[BlackElo "2465"]
[Annotator "ChessBase"]
[PlyCount "66"]
[EventDate "2019.09.11"]
[EventType "tourn"]
[EventCountry "GRE"]
[SourceTitle "playchess.com"]
[Source "ChessBase"]
[SourceQuality "1"]
[TimeControl "40/5400+30:1800+30"]

1. e4 {[%emt 0:01:12]} Nf6 {[%emt 0:00:00]} 2. e5 {[%emt 0:00:04]} Nd5 {[%emt 0:00:00]} 3. d4 {[%emt 0:00:02]} d6 {[%emt 0:00:00]} 4. f4 {[%emt 0:00:39]} dxe5 {[%emt 0:02:07]} 5. fxe5 {[%emt 0:00:07]} c5 {[%emt 0:01:38]} 6. Nf3 {[%emt 0:00:34]} cxd4 {[%emt 0:02:03]} 7. Qxd4 {[%emt 0:00:27]} Nc6 {[%emt 0:02:07]} 8. Qe4 {[%emt 0:00:23]} g6 {[%emt 0:01:41]} 9. Bc4 {[%emt 0:00:30]} Nb6 {[%emt 0:10:06]} 10. Bb3 {[%emt 0:01:02]} Bf5 {[%emt 0:01:24]} 11. Qf4 {[%emt 0:01:13]} Bg7 {[%emt 0:00:30]} 12. O-O {[%emt 0:02:01]} O-O {[%emt 0:03:01]} 13. Nc3 {[%emt 0:01:26]} Nd7 {[%emt 0:08:15]} 14. e6 {[%emt 0:05:28]} Bxe6 {[%emt 0:04:38]} 15. Bxe6 {[%emt 0:00:12]} fxe6 {[%emt 0:00:02]} 16. Qe4 {[%emt 0:00:08]} Nde5 {[%emt 0:11:09]} 17. Be3 {[%emt 0:01:20]} Nxf3+ {[%emt 0:02:10]} 18. Rxf3 {[%emt 0:00:13]} Rxf3 {[%emt 0:00:08]} 19. gxf3 {[%emt 0:00:31]} Kf7 {[%emt 0:02:40]} 20. Rd1 {[%emt 0:00:25]} Qa5 {[%emt 0:07:40]} 21. Rd7 {[%emt 0:02:17]} Bxc3 {[%emt 0:05:32]} 22. bxc3 {[%emt 0:00:09]} Rb8 {[%emt 0:01:23]} 23. Bf4 {[%emt 0:00:22]} Rd8 {[%emt 0:00:12]} 24. Rxb7 {[%emt 0:00:13]} Rd1+ {[%emt 0:09:21]} 25. Kg2 {[%emt 0:00:07]} Qa6 {[%emt 0:00:11]} 26. Rc7 {[%emt 0:00:08]} Qf1+ {[%emt 0:01:14]} 27. Kg3 {[%emt 0:00:06]} Qg1+ {[%emt 0:00:03]} 28. Kh3 {[%emt 0:00:03]} Rd5 {[%emt 0:00:05]} 29. Bg3 {[%emt 0:00:09]} Rh5+ {[%emt 0:00:40]} 30. Kg4 {[%emt 0:00:28]} Ne5+ {[%emt 0:00:09]} 31. Kf4 {[%emt 0:00:10]} Rf5+ {[%emt 0:00:11]} 32. Qxf5+ {[%emt 0:00:06]} gxf5 {[%emt 0:00:08]} 33. Kxe5 {[%emt 0:00:03]} Qe3# {[%emt 0:00:06] Kd4} 0-1

[Event "2nd Tal Memorial IM 2019"]
[Site "Anogia"]
[Date "2019.09.13"]
[Round "3.4"]
[White "Sokolovsky, Yahli"]
[Black "Sidiropoulos, Nikolaos"]
[Result "1/2-1/2"]
[ECO "B18"]
[WhiteElo "2239"]
[BlackElo "2160"]
[Annotator "NA"]
[PlyCount "107"]
[EventDate "2019.09.11"]
[EventType "tourn"]
[EventCountry "GRE"]
[SourceTitle "playchess.com"]
[Source "ChessBase"]
[SourceQuality "1"]
[TimeControl "40/5400+30:1800+30"]

1. e4 {[%emt 0:00:00]} c6 {[%emt 0:03:33]} 2. d4 {[%emt 0:00:00]} d5 {[%emt 0:00:04]} 3. Nc3 {[%emt 0:00:00]} dxe4 {[%emt 0:00:10]} 4. Nxe4 {[%emt 0:00:00]} Bf5 {[%emt 0:00:18]} 5. Qf3 {[%emt 0:00:16]} Bg6 {[%emt 0:00:43]} 6. Qe3 {[%emt 0:00:40]} e6 {[%emt 0:01:29]} 7. Nf3 {[%emt 0:01:53]} Nd7 {[%emt 0:03:32]} 8. Bd3 {[%emt 0:02:14]} Ngf6 {[%emt 0:05:15]} 9. c3 {[%emt 0:02:52]} Nxe4 {[%emt 0:01:59]} 10. Bxe4 {[%emt 0:00:09]} Bxe4 {[%emt 0:00:06]} 11. Qxe4 {[%emt 0:00:05]} Nf6 {[%emt 0:00:10]} 12. Qe2 {[%emt 0:02:15]} Qd5 {[%emt 0:00:59]} 13. Bf4 {[%emt 0:06:34]} Qe4 {[%emt 0:09:23]} 14. Qxe4 {[%emt 0:04:16]} Nxe4 {[%emt 0:00:06]} 15. O-O {[%emt 0:06:11]} Be7 {[%emt 0:01:09]} 16. Rfe1 {[%emt 0:02:16]} Nf6 {[%emt 0:00:17]} 17. Nd2 {[%emt 0:10:06]} O-O {[%emt 0:02:13]} 18. Nc4 {[%emt 0:03:53]} Rfd8 {[%emt 0:01:32]} 19. Rad1 {[%emt 0:10:45]} Rac8 {[%emt 0:06:22]} 20. Bg3 {[%emt 0:06:09]} b6 {[%emt 0:05:13]} 21. a4 {[%emt 0:07:31]} c5 {[%emt 0:04:31]} 22. dxc5 {[%emt 0:00:30]} Bxc5 {[%emt 0:00:18]} 23. Nd6 {[%emt 0:02:12]} Bxd6 {[%emt 0:01:15]} 24. Bxd6 {[%emt 0:00:47]} Rd7 {[%emt 0:03:07]} 25. Rd4 {[%emt 0:02:00]} Rcd8 {[%emt 0:09:56]} 26. Red1 {[%emt 0:01:03]} Ne4 {[%emt 0:03:30]} 27. Be5 {[%emt 0:01:13]} Nc5 {[%emt 0:04:53]} 28. Rxd7 {[%emt 0:09:36]} Rxd7 {[%emt 0:00:13]} 29. Rxd7 {[%emt 0:00:17]} Nxd7 {[%emt 0:00:30]} 30. Bd6 {[%emt 0:02:19]} e5 {[%emt 0:00:40]} 31. f4 {[%emt 0:09:00]} exf4 {[%emt 0:00:19]} 32. Bxf4 {[%emt 0:01:07]} Nc5 {[%emt 0:04:21]} 33. a5 {[%emt 0:00:21]} bxa5 {[%emt 0:00:58]} 34. Bd6 {[%emt 0:00:16]} Nd3 {[%emt 0:01:15]} 35. Ba3 {[%emt 0:00:30]} f5 {[%emt 0:00:56]} 36. Kf1 {[%emt 0:00:36]} Kf7 {[%emt 0:00:26]} 37. Ke2 {[%emt 0:00:30]} Nf4+ {[%emt 0:00:41]} 38. Kf3 {[%emt 0:00:18]} Nd5 {[%emt 0:00:17]} 39. Bc5 {[%emt 0:01:27]} a6 {[%emt 0:00:41]} 40. c4 {[%emt 0:00:00]} Nb4 {[%emt 0:00:00]} 41. h4 {[%emt 0:16:57]} Ke6 {[%emt 0:04:08]} 42. Bd4 {[%emt 0:01:52]} g6 {[%emt 0:01:27]} 43. Kf4 {[%emt 0:04:42]} Nd3+ {[%emt 0:00:26]} 44. Kg5 {[%emt 0:00:50]} Ne1 {[%emt 0:00:17]} 45. Kh6 {[%emt 0:01:10]} Nxg2 {[%emt 0:00:57]} 46. Bf2 {[%emt 0:00:12]} Kd6 {[%emt 0:41:22]} 47. Kxh7 {[%emt 0:04:46]} Nxh4 {[%emt 0:00:28]} 48. Bxh4 {[%emt 0:00:11]} Kc5 {[%emt 0:00:10]} 49. b3 {[%emt 0:01:21]} a4 {[%emt 0:00:17]} 50. Bf2+ {[%emt 0:09:20]} Kb4 {[%emt 0:02:04]} 51. Be1+ {[%emt 0:00:04]} Kc5 {[%emt 0:02:00]} 52. Bf2+ {[%emt 0:00:51]} Kb4 {[%emt 0:00:01]} 53. Be1+ {[%emt 0:00:54]} Kc5 {[%emt 0:00:01]} 54. Bf2+ {[%emt 0:00:04]} 1/2-1/2

[Event "2nd Tal Memorial IM 2019"]
[Site "Anogia"]
[Date "2019.09.13"]
[Round "3.5"]
[White "Grieve, Harry"]
[Black "Vanheirzeele, Daniel"]
[Result "1-0"]
[ECO "B56"]
[WhiteElo "2277"]
[BlackElo "2105"]
[Annotator "NA"]
[PlyCount "37"]
[EventDate "2019.09.11"]
[EventType "tourn"]
[EventCountry "GRE"]
[SourceTitle "playchess.com"]
[Source "ChessBase"]
[SourceQuality "1"]
[TimeControl "40/5400+30:1800+30"]

1. e4 {[%emt 0:00:00]} c5 {[%emt 0:00:00]} 2. Nf3 {[%emt 0:00:00]} d6 {[%emt 0:00:08]} 3. d4 {[%emt 0:00:00]} cxd4 {[%emt 0:00:08]} 4. Nxd4 {[%emt 0:00:00]} Nf6 {[%emt 0:00:06]} 5. Nc3 {[%emt 0:00:01]} Nc6 {[%emt 0:00:06]} 6. f3 {[%emt 0:00:08]} Nxd4 {[%emt 0:00:38]} 7. Qxd4 {[%emt 0:00:07]} g6 {[%emt 0:00:07]} 8. Bg5 {[%emt 0:00:06]} Bg7 {[%emt 0:00:13]} 9. O-O-O {[%emt 0:00:06]} O-O {[%emt 0:01:46]} 10. Qb4 {[%emt 0:00:04]} a5 {[%emt 0:32:55]} 11. Qa3 {[%emt 0:00:06]} Bd7 {[%emt 0:00:09]} 12. e5 {[%emt 0:00:13]} dxe5 {[%emt 0:02:45]} 13. Bxf6 {[%emt 0:02:25]} exf6 {[%emt 0:01:00]} 14. Bb5 {[%emt 0:00:10]} f5 {[%emt 0:00:03]} 15. h4 {[%emt 0:09:45]} Qb6 {[%emt 0:04:41]} 16. Bxd7 {[%emt 0:01:57]} Qf2 {[%emt 0:00:03]} 17. h5 {[%emt 0:07:03]} Qxg2 {[%emt 0:09:41]} 18. Nd5 {[%emt 0:06:56]} Qg5+ {[%emt 0:07:27]} 19. f4 {[%emt 0:05:15]} 1-0

[Event "2nd Tal Memorial IM 2019"]
[Site "Anogia"]
[Date "2019.09.14"]
[Round "4.1"]
[White "Goumas, Georgios"]
[Black "Vanheirzeele, Daniel"]
[Result "1-0"]
[ECO "B45"]
[WhiteElo "2417"]
[BlackElo "2105"]
[Annotator "NA"]
[PlyCount "65"]
[EventDate "2019.09.11"]
[EventType "tourn"]
[EventCountry "GRE"]
[SourceTitle "playchess.com"]
[Source "ChessBase"]
[SourceQuality "1"]
[TimeControl "40/5400+30:1800+30"]

1. e4 {[%emt 0:08:06]} c5 {[%emt 0:00:00]} 2. Nf3 {[%emt 0:00:11]} e6 {[%emt 0:00:02]} 3. d4 {[%emt 0:00:15]} cxd4 {[%emt 0:00:05]} 4. Nxd4 {[%emt 0:00:07]} Nf6 {[%emt 0:00:04]} 5. Nc3 {[%emt 0:00:07]} Nc6 {[%emt 0:00:04]} 6. a3 {[%emt 0:00:30]} d5 {[%emt 0:02:41]} 7. Bb5 {[%emt 0:00:24]} Bd7 {[%emt 0:01:13]} 8. exd5 {[%emt 0:00:08]} exd5 {[%emt 0:00:06]} 9. O-O {[%emt 0:00:07]} Be7 {[%emt 0:00:54]} 10. Nce2 {[%emt 0:03:31]} O-O {[%emt 0:03:31]} 11. c3 {[%emt 0:04:59]} Ne5 {[%emt 0:30:54]} 12. Bxd7 {[%emt 0:01:31]} Qxd7 {[%emt 0:00:47]} 13. Qc2 {[%emt 0:02:00]} Rfe8 {[%emt 0:17:27]} 14. Bf4 {[%emt 0:01:12]} Ng6 {[%emt 0:00:33]} 15. Bg3 {[%emt 0:00:23]} Ne4 {[%emt 0:02:27]} 16. Rad1 {[%emt 0:01:42]} Bf6 {[%emt 0:02:25]} 17. h3 {[%emt 0:02:33]} Rac8 {[%emt 0:01:37]} 18. Bh2 {[%emt 0:00:55]} b5 {[%emt 0:01:32]} 19. Ng3 {[%emt 0:08:37]} Nxg3 {[%emt 0:16:06]} 20. Bxg3 {[%emt 0:00:18]} Re4 {[%emt 0:00:07]} 21. Nf3 {[%emt 0:01:32]} Qb7 {[%emt 0:02:44]} 22. Qd3 {[%emt 0:00:55]} Rd8 {[%emt 0:01:31]} 23. Rd2 {[%emt 0:01:54]} h6 {[%emt 0:03:27]} 24. Rfd1 {[%emt 0:00:28]} a5 {[%emt 0:00:30]} 25. Qc2 {[%emt 0:02:17]} b4 {[%emt 0:02:23]} 26. cxb4 {[%emt 0:01:54]} axb4 {[%emt 0:00:05]} 27. Qb3 {[%emt 0:00:05]} Rc4 {[%emt 0:01:52]} 28. a4 {[%emt 0:01:02]} Nf8 {[%emt 0:04:53]} 29. Be5 {[%emt 0:19:45]} Be7 {[%emt 0:00:05]} 30. Nd4 {[%emt 0:04:33]} Nd7 {[%emt 0:00:24]} 31. Bxg7 {[%emt 0:01:59]} Kxg7 {[%emt 0:01:07]} 32. Nf5+ {[%emt 0:00:03]} Kh7 {[%emt 0:03:15]} 33. Rxd5 {[%emt 0:00:46]} 1-0

[Event "2nd Tal Memorial IM 2019"]
[Site "Anogia"]
[Date "2019.09.14"]
[Round "4.2"]
[White "Sidiropoulos, Nikolaos"]
[Black "Grieve, Harry"]
[Result "1-0"]
[ECO "D31"]
[WhiteElo "2160"]
[BlackElo "2277"]
[Annotator "NA"]
[PlyCount "133"]
[EventDate "2019.09.11"]
[EventType "tourn"]
[EventCountry "GRE"]
[SourceTitle "playchess.com"]
[Source "ChessBase"]
[SourceQuality "1"]
[TimeControl "40/5400+30:1800+30"]

1. d4 {[%emt 0:09:49]} d5 {[%emt 0:00:00]} 2. c4 {[%emt 0:00:06]} e6 {[%emt 0:00:00]} 3. Nc3 {[%emt 0:00:04]} c6 {[%emt 0:00:00]} 4. cxd5 {[%emt 0:00:17]} exd5 {[%emt 0:00:00]} 5. Bf4 {[%emt 0:00:13]} Bd6 {[%emt 0:07:23]} 6. Bxd6 {[%emt 0:01:15]} Qxd6 {[%emt 0:00:06]} 7. e3 {[%emt 0:00:26]} Ne7 {[%emt 0:06:22]} 8. Bd3 {[%emt 0:00:48]} Bf5 {[%emt 0:02:28]} 9. Nge2 {[%emt 0:01:42]} O-O {[%emt 0:03:10]} 10. O-O {[%emt 0:01:52]} Nd7 {[%emt 0:02:15]} 11. Bxf5 {[%emt 0:09:50]} Nxf5 {[%emt 0:00:08]} 12. Qd3 {[%emt 0:00:10]} Ne7 {[%emt 0:05:27]} 13. f3 {[%emt 0:04:57]} f5 {[%emt 0:09:02]} 14. Kh1 {[%emt 0:06:58]} Rae8 {[%emt 0:05:15]} 15. f4 {[%emt 0:04:35]} Qh6 {[%emt 0:13:46]} 16. Ng1 {[%emt 0:01:44]} Nc8 {[%emt 0:03:17]} 17. Nf3 {[%emt 0:01:26]} Nd6 {[%emt 0:01:30]} 18. Ne5 {[%emt 0:00:43]} Nf6 {[%emt 0:05:09]} 19. Kg1 {[%emt 0:10:01]} Ng4 {[%emt 0:07:04]} 20. h3 {[%emt 0:00:51]} Nf6 {[%emt 0:00:26]} 21. Qe2 {[%emt 0:01:09]} Kh8 {[%emt 0:04:09]} 22. Qf3 {[%emt 0:06:59]} Rg8 {[%emt 0:03:21]} 23. g4 {[%emt 0:12:05]} g5 {[%emt 0:01:11]} 24. Rf2 {[%emt 0:08:01]} Re7 {[%emt 0:04:37]} 25. Rg2 {[%emt 0:04:47]} Reg7 {[%emt 0:02:16]} 26. Rf1 {[%emt 0:04:09]} Qh4 {[%emt 0:02:18]} 27. Qf2 {[%emt 0:04:45]} Qh6 {[%emt 0:05:09]} 28. fxg5 {[%emt 0:02:29]} Rxg5 {[%emt 0:01:36]} 29. h4 {[%emt 0:00:05]} Rxg4 {[%emt 0:01:53]} 30. Nxg4 {[%emt 0:00:09]} Nxg4 {[%emt 0:01:05]} 31. Qf4 {[%emt 0:00:09]} Qe6 {[%emt 0:00:54]} 32. Nd1 {[%emt 0:01:19]} Re8 {[%emt 0:01:17]} 33. Rf3 {[%emt 0:00:52]} h6 {[%emt 0:02:02]} 34. Nf2 {[%emt 0:00:17]} Nxf2 {[%emt 0:01:48]} 35. Rgxf2 {[%emt 0:00:50]} Ne4 {[%emt 0:00:34]} 36. Rg2 {[%emt 0:00:04]} Rf8 {[%emt 0:00:30]} 37. Qc7 {[%emt 0:00:33]} Rg8 {[%emt 0:00:31]} 38. Rxg8+ {[%emt 0:01:41]} Qxg8+ {[%emt 0:00:11]} 39. Kh2 {[%emt 0:00:07]} Qg4 {[%emt 0:00:49]} 40. Qe5+ {[%emt 0:00:00]} Kg8 {[%emt 0:00:00]} 41. Qb8+ {[%emt 0:02:51]} Kf7 {[%emt 0:04:53]} 42. Qxb7+ {[%emt 0:00:16]} Ke6 {[%emt 0:00:06]} 43. Qc8+ {[%emt 0:01:22]} Kf6 {[%emt 0:00:45]} 44. Qxc6+ {[%emt 0:00:37]} Kg7 {[%emt 0:01:49]} 45. Qd7+ {[%emt 0:00:19]} Kf6 {[%emt 0:00:37]} 46. Qd8+ {[%emt 0:00:32]} Kg7 {[%emt 0:02:02]} 47. Qe7+ {[%emt 0:00:24]} Kg6 {[%emt 0:00:56]} 48. Qe6+ {[%emt 0:00:26]} Kg7 {[%emt 0:00:18]} 49. Qe5+ {[%emt 0:11:06]} Kg6 {[%emt 0:01:23]} 50. Qf4 {[%emt 0:01:19]} Qh5 {[%emt 0:01:09]} 51. b4 {[%emt 0:00:40]} Nf6 {[%emt 0:00:52]} 52. Rg3+ {[%emt 0:01:09]} Ng4+ {[%emt 0:00:10]} 53. Kh3 {[%emt 0:00:39]} Kh7 {[%emt 0:02:07]} 54. Qc7+ {[%emt 0:00:54]} Kh8 {[%emt 0:00:14]} 55. Qb8+ {[%emt 0:00:17]} Kh7 {[%emt 0:00:01]} 56. Qxa7+ {[%emt 0:00:08]} Kh8 {[%emt 0:00:03]} 57. Qa8+ {[%emt 0:00:36]} Kh7 {[%emt 0:00:05]} 58. Qxd5 {[%emt 0:00:54]} Nf2+ {[%emt 0:00:23]} 59. Kg2 {[%emt 0:00:06]} Ng4 {[%emt 0:00:03]} 60. Qe6 {[%emt 0:00:37]} Kh8 {[%emt 0:00:30]} 61. Qe7 {[%emt 0:00:51]} Qg6 {[%emt 0:00:22]} 62. d5 {[%emt 0:00:47]} f4 {[%emt 0:00:13]} 63. Qd8+ {[%emt 0:01:07]} Kh7 {[%emt 0:00:11]} 64. Qd7+ {[%emt 0:00:04]} Kh8 {[%emt 0:00:04]} 65. Rxg4 {[%emt 0:00:15]} Qe4+ {[%emt 0:00:54]} 66. Kh2 {[%emt 0:00:08]} Qc2+ {[%emt 0:00:16]} 67. Rg2 {[%emt 0:00:09]} 1-0

[Event "2nd Tal Memorial IM 2019"]
[Site "Anogia"]
[Date "2019.09.14"]
[Round "4.3"]
[White "Peng, Li Min"]
[Black "Sokolovsky, Yahli"]
[Result "1-0"]
[ECO "A49"]
[WhiteElo "2465"]
[BlackElo "2239"]
[Annotator "ChessBase"]
[PlyCount "65"]
[EventDate "2019.09.11"]
[EventType "tourn"]
[EventCountry "GRE"]
[SourceTitle "playchess.com"]
[Source "ChessBase"]
[SourceQuality "1"]
[TimeControl "40/5400+30:1800+30"]

1. Nf3 {[%emt 0:00:00]} Nf6 {[%emt 0:00:00]} 2. c4 {[%emt 0:00:01]} g6 {[%emt 0:00:00]} 3. b3 {[%emt 0:00:14]} Bg7 {[%emt 0:00:02]} 4. Bb2 {[%emt 0:00:08]} O-O {[%emt 0:00:26]} 5. g3 {[%emt 0:00:04]} d6 {[%emt 0:02:14]} 6. d4 {[%emt 0:00:08]} e5 {[%emt 0:10:15]} 7. dxe5 {[%emt 0:00:35]} Ng4 {[%emt 0:00:53]} 8. Nc3 {[%emt 0:00:08]} Nxe5 {[%emt 0:00:58]} 9. Bg2 {[%emt 0:00:05]} Nxf3+ {[%emt 0:05:54]} 10. Bxf3 {[%emt 0:00:06]} Nc6 {[%emt 0:00:54]} 11. O-O {[%emt 0:00:59]} Bh3 {[%emt 0:04:01]} 12. Re1 {[%emt 0:00:02]} Rb8 {[%emt 0:05:07]} 13. Qd2 {[%emt 0:00:55]} Ne5 {[%emt 0:15:07]} 14. Bh1 {[%emt 0:04:56]} Be6 {[%emt 0:03:14]} 15. f4 {[%emt 0:08:23]} Ng4 {[%emt 0:02:36]} 16. e4 {[%emt 0:02:23]} c6 {[%emt 0:01:38]} 17. Bf3 {[%emt 0:00:54]} h5 {[%emt 0:05:36]} 18. Kg2 {[%emt 0:01:50]} Qd7 {[%emt 0:09:20]} 19. Rad1 {[%emt 0:01:50]} Rbd8 {[%emt 0:02:00]} 20. h3 {[%emt 0:16:43]} Nh6 {[%emt 0:02:36]} 21. f5 {[%emt 0:06:08]} gxf5 {[%emt 0:00:34]} 22. Nd5 {[%emt 0:00:04]} Bxb2 {[%emt 0:11:07]} 23. Qxh6 {[%emt 0:03:12]} cxd5 {[%emt 0:00:37]} 24. exd5 {[%emt 0:00:15]} Rde8 {[%emt 0:02:40]} 25. Qxh5 {[%emt 0:01:05]} Be5 {[%emt 0:03:24]} 26. dxe6 {[%emt 0:03:36]} Qxe6 {[%emt 0:00:21]} 27. Bd5 {[%emt 0:00:05]} Qf6 {[%emt 0:00:34]} 28. Rf1 {[%emt 0:00:02]} Qg7 {[%emt 0:02:09]} 29. Rxf5 {[%emt 0:00:55]} Qxg3+ {[%emt 0:01:25]} 30. Kf1 {[%emt 0:00:05]} Bf4 {[%emt 0:01:34]} 31. Rxf7 {[%emt 0:01:09]} Re1+ {[%emt 0:00:42]} 32. Rxe1 {[%emt 0:00:03]} Qd3+ {[%emt 0:00:04]} 33. Re2 {[%emt 0:00:09]} 1-0

[Event "2nd Tal Memorial IM 2019"]
[Site "Anogia"]
[Date "2019.09.14"]
[Round "4.4"]
[White "Logothetis, Sotirios"]
[Black "Bogdanov, Egor"]
[Result "0-1"]
[ECO "E62"]
[WhiteElo "2167"]
[BlackElo "2422"]
[Annotator "NA"]
[PlyCount "62"]
[EventDate "2019.09.11"]
[EventType "tourn"]
[EventCountry "GRE"]
[SourceTitle "playchess.com"]
[Source "ChessBase"]
[SourceQuality "1"]
[TimeControl "40/5400+30:1800+30"]

1. d4 {[%emt 0:00:00]} Nf6 {[%emt 0:00:27]} 2. Nf3 {[%emt 0:00:00]} g6 {[%emt 0:00:05]} 3. c4 {[%emt 0:00:00]} Bg7 {[%emt 0:00:02]} 4. g3 {[%emt 0:00:00]} O-O {[%emt 0:00:05]} 5. Bg2 {[%emt 0:00:02]} d6 {[%emt 0:00:06]} 6. Nc3 {[%emt 0:00:12]} Nc6 {[%emt 0:00:30]} 7. O-O {[%emt 0:00:11]} Bf5 {[%emt 0:00:30]} 8. Bg5 {[%emt 0:02:15]} Ne4 {[%emt 0:01:04]} 9. Nxe4 {[%emt 0:00:30]} Bxe4 {[%emt 0:00:04]} 10. d5 {[%emt 0:00:29]} Bxf3 {[%emt 0:00:05]} 11. exf3 {[%emt 0:01:10]} Nd4 {[%emt 0:01:07]} 12. Re1 {[%emt 0:03:17]} Re8 {[%emt 0:00:19]} 13. Re4 {[%emt 0:00:24]} c5 {[%emt 0:00:49]} 14. dxc6 {[%emt 0:00:08]} Nxc6 {[%emt 0:00:08]} 15. h4 {[%emt 0:05:40]} Qa5 {[%emt 0:06:40]} 16. Qd2 {[%emt 0:38:22]} Qxd2 {[%emt 0:10:46]} 17. Bxd2 {[%emt 0:00:09]} Bxb2 {[%emt 0:09:09]} 18. Rb1 {[%emt 0:00:12]} Bf6 {[%emt 0:00:45]} 19. Rxb7 {[%emt 0:00:16]} Rab8 {[%emt 0:00:09]} 20. Rc7 {[%emt 0:06:42]} Rec8 {[%emt 0:01:24]} 21. Rxc8+ {[%emt 0:00:14]} Rxc8 {[%emt 0:00:02]} 22. f4 {[%emt 0:12:49]} Nd4 {[%emt 0:01:14]} 23. Be3 {[%emt 0:04:37]} Ne2+ {[%emt 0:00:57]} 24. Kf1 {[%emt 0:00:08]} Nc3 {[%emt 0:00:07]} 25. Bxa7 {[%emt 0:00:36]} Nxe4 {[%emt 0:00:03]} 26. Bxe4 {[%emt 0:00:07]} Rxc4 {[%emt 0:00:12]} 27. Bd5 {[%emt 0:00:24]} Rc2 {[%emt 0:02:56]} 28. Bb3 {[%emt 0:03:18]} Rb2 {[%emt 0:00:09]} 29. Be3 {[%emt 0:00:33]} e6 {[%emt 0:00:16]} 30. Ke1 {[%emt 0:00:27]} d5 {[%emt 0:00:15]} 31. Bc1 {[%emt 0:01:13]} Bc3+ {[%emt 0:00:04]} 0-1

[Event "2nd Tal Memorial IM 2019"]
[Site "Anogia"]
[Date "2019.09.14"]
[Round "4.5"]
[White "Katopodis, Dimitrios"]
[Black "Lekic, Dusan"]
[Result "1/2-1/2"]
[ECO "A20"]
[WhiteElo "2265"]
[BlackElo "2331"]
[Annotator "NA"]
[PlyCount "105"]
[EventDate "2019.09.11"]
[EventType "tourn"]
[EventCountry "GRE"]
[SourceTitle "playchess.com"]
[Source "ChessBase"]
[SourceQuality "1"]
[TimeControl "40/5400+30:1800+30"]

1. c4 {[%emt 0:02:33]} e5 {[%emt 0:00:29]} 2. g3 {[%emt 0:00:16]} Nf6 {[%emt 0:00:24]} 3. Bg2 {[%emt 0:00:10]} d5 {[%emt 0:01:10]} 4. cxd5 {[%emt 0:00:08]} Nxd5 {[%emt 0:00:05]} 5. Nf3 {[%emt 0:01:40]} Nc6 {[%emt 0:00:16]} 6. O-O {[%emt 0:00:14]} Be7 {[%emt 0:02:52]} 7. d4 {[%emt 0:01:53]} e4 {[%emt 0:02:07]} 8. Ne5 {[%emt 0:00:07]} f5 {[%emt 0:00:38]} 9. Nxc6 {[%emt 0:00:29]} bxc6 {[%emt 0:00:06]} 10. Qa4 {[%emt 0:04:38]} Qd6 {[%emt 0:08:17]} 11. Nd2 {[%emt 0:02:49]} Nb6 {[%emt 0:02:09]} 12. Qc2 {[%emt 0:01:57]} a5 {[%emt 0:16:48]} 13. Nb3 {[%emt 0:04:06]} a4 {[%emt 0:03:14]} 14. Nc5 {[%emt 0:06:58]} Qxd4 {[%emt 0:01:04]} 15. Be3 {[%emt 0:03:22]} Qc4 {[%emt 0:02:38]} 16. Qxc4 {[%emt 0:05:48]} Nxc4 {[%emt 0:00:08]} 17. Bd4 {[%emt 0:01:57]} O-O {[%emt 0:12:50]} 18. Rac1 {[%emt 0:03:09]} Nb6 {[%emt 0:03:18]} 19. f3 {[%emt 0:03:28]} Rd8 {[%emt 0:01:56]} 20. Rfd1 {[%emt 0:06:39]} Bg5 {[%emt 0:06:44]} 21. e3 {[%emt 0:04:33]} Nd5 {[%emt 0:02:09]} 22. Kf2 {[%emt 0:03:58]} exf3 {[%emt 0:05:40]} 23. Bxf3 {[%emt 0:00:30]} Ra5 {[%emt 0:02:24]} 24. Nd3 {[%emt 0:06:12]} Bd7 {[%emt 0:03:45]} 25. Nf4 {[%emt 0:17:25]} Nxf4 {[%emt 0:03:30]} 26. exf4 {[%emt 0:02:03]} Be7 {[%emt 0:00:16]} 27. Be5 {[%emt 0:01:38]} Be6 {[%emt 0:00:47]} 28. Rxc6 {[%emt 0:04:33]} Rxd1 {[%emt 0:02:13]} 29. Bxd1 {[%emt 0:00:56]} Bxa2 {[%emt 0:01:20]} 30. Rxc7 {[%emt 0:00:51]} Bf6 {[%emt 0:00:10]} 31. Bh5 {[%emt 0:01:36]} Ra8 {[%emt 0:01:12]} 32. Bf3 {[%emt 0:00:56]} Bxe5 {[%emt 0:01:07]} 33. fxe5 {[%emt 0:01:35]} Rb8 {[%emt 0:00:23]} 34. Bb7 {[%emt 0:00:44]} Re8 {[%emt 0:01:30]} 35. Rc8 {[%emt 0:00:38]} Rxc8 {[%emt 0:01:12]} 36. Bxc8 {[%emt 0:00:06]} g6 {[%emt 0:00:20]} 37. Ke3 {[%emt 0:00:21]} Kf7 {[%emt 0:00:12]} 38. Kf4 {[%emt 0:05:12]} h6 {[%emt 0:00:22]} 39. h4 {[%emt 0:00:36]} Bb1 {[%emt 0:00:20]} 40. Bd7 {[%emt 0:00:00]} Bc2 {[%emt 0:00:00]} 41. Bb5 {[%emt 0:05:09]} Ke6 {[%emt 0:00:59]} 42. Bc4+ {[%emt 0:00:26]} Ke7 {[%emt 0:00:07]} 43. Bd5 {[%emt 0:01:15]} Bb1 {[%emt 0:01:07]} 44. Bg8 {[%emt 0:02:44]} Be4 {[%emt 0:01:05]} 45. g4 {[%emt 0:04:07]} Bc2 {[%emt 0:00:16]} 46. g5 {[%emt 0:01:49]} hxg5+ {[%emt 0:00:18]} 47. Kxg5 {[%emt 0:00:19]} Bb3 {[%emt 0:00:06]} 48. Bh7 {[%emt 0:04:51]} Bf7 {[%emt 0:00:22]} 49. h5 {[%emt 0:02:32]} gxh5 {[%emt 0:00:08]} 50. Bxf5 {[%emt 0:00:12]} Be6 {[%emt 0:00:12]} 51. Bc2 {[%emt 0:00:19]} Bb3 {[%emt 0:00:10]} 52. Bf5 {[%emt 0:00:21]} Bd1 {[%emt 0:00:39]} 53. Kh4 {[%emt 0:00:52]} 1/2-1/2